fUST/lending_fUST_20260113
["ID","MTS","AMOUNT","RATE_DAILY","PERIOD"]
[401536612,1768295439561,-500.0,0.00014777,2]
[401536613,1768295439570,-250.0,0.00014777,2]
[401536614,1768295439579,-396.0,0.00014777,2]
[401536615,1768295439588,-467.0021236,0.00014777,2]
[401536616,1768295439597,-971.0,0.00014777,2]
[401536617,1768295439605,-500.0,0.00014777,2]
[401536618,1768295439614,-500.0,0.00014777,2]
[401536619,1768295439623,-500.0,0.00014777,2]
[401536620,1768295439632,-761.0,0.00014777,2]
[401536621,1768295439641,-500.0,0.00014777,2]
[401536622,1768295439650,-500.0,0.00014777,2]
[401536623,1768295439659,-500.0,0.00014777,2]
[401536624,1768295439667,-500.0,0.00014777,2]
[401536625,1768295439677,-500.0,0.00014777,2]
[401536626,1768295439686,-500.0,0.00014777,2]
[401536627,1768295439695,-500.0,0.00014777,2]
[401536628,1768295439704,-153.32118703,0.00014777,2]
[401536629,1768295439714,-1142.0,0.00014802,2]
[401536630,1768295439723,-420.0,0.00014902,2]
[401536631,1768295439733,-302.0,0.00014902,2]
[401536632,1768295439741,-420.0,0.00014902,2]
[401536633,1768295439751,-500.0,0.00014914,2]
[401536634,1768295439760,-971.0,0.00014914,2]
[401536635,1768295439772,-500.0,0.00014914,2]
[401536636,1768295439781,-500.0,0.00014914,2]
[401536637,1768295439790,-500.0,0.00014914,2]
[401536638,1768295439799,-761.0,0.00014914,2]
[401536639,1768295439808,-500.0,0.00014914,2]
[401536640,1768295439818,-347.9974016,0.00014914,2]
[401536641,1768295439827,-236.46243099,0.00014914,2]
[401536642,1768295439837,-250.0,0.00014914,2]
[401536643,1768295439846,-500.0,0.00014914,2]
[401536644,1768295439855,-500.0,0.00014914,2]
[401536645,1768295439864,-500.0,0.00014914,2]
[401536646,1768295439873,-500.0,0.00014914,2]
[401536647,1768295439882,-1680.0,0.00014956,2]
[401536648,1768295439890,-307.68297277,0.00014979,2]
[401536649,1768295439899,-971.0,0.00015051,2]
[401536650,1768295439908,-472.84154901,0.00015051,2]
[401536651,1768295439917,-500.0,0.00015051,2]
[401536653,1768295439927,-500.0,0.00015051,2]
[401536655,1768295439936,-761.0,0.00015051,2]
[401536656,1768295439945,-500.0,0.00015051,2]
[401536658,1768295439954,-500.0,0.00015051,2]
[401536660,1768295439963,-500.0,0.00015051,2]
[401536662,1768295439972,-500.0,0.00015051,2]
[401536664,1768295439982,-295.87556456,0.00015051,2]
[401536666,1768295439991,-174.168535,0.00015068,2]
[401536668,1768295440001,-514.84070869,0.00015142,2]
[401536670,1768295440010,-971.0,0.00015188,2]
[401536672,1768295440019,-500.0,0.00015188,2]
[401536674,1768295440028,-500.0,0.00015188,2]
[401536676,1768295440037,-761.0,0.00015188,2]
[401536678,1768295440046,-500.0,0.00015188,2]
[401536680,1768295440055,-500.0,0.00015188,2]
[401536682,1768295440064,-500.0,0.00015188,2]
[401536684,1768295440073,-151.19237479,0.00015188,2]
[401536686,1768295440082,-971.0,0.00015325,2]
[401536688,1768295440091,-500.0,0.00015325,2]
[401536690,1768295440100,-191.43044875,0.00015325,2]
[401536692,1768295440109,-761.0,0.00015325,2]
[401536694,1768295440118,-247.76958579,0.00015325,2]
[401536696,1768295440127,-433.98664865,0.00015325,2]
[401536698,1768295440136,-500.0,0.00015325,2]
[401536700,1768295440145,-971.0,0.00015462,2]
[401536702,1768295440154,-174.14938237,0.00015462,2]
[401536704,1768295440163,-761.0,0.00015462,2]
[401536706,1768295440172,-500.0,0.00015462,2]
[401536708,1768295440181,-1041.66666667,0.00015484,2]
[401536710,1768295440191,-971.0,0.00015599,2]
[401536712,1768295440199,-761.0,0.00015599,2]
[401536714,1768295440208,-500.0,0.00015599,2]
[401536716,1768295440217,-533.88981491,0.0001569,2]
[401536718,1768295440227,-971.0,0.00015736,2]
[401536720,1768295440236,-761.0,0.00015736,2]
[401536722,1768295440245,-500.0,0.00015736,2]
[401536724,1768295440254,-971.0,0.00015873,2]
[401536726,1768295440262,-761.0,0.00015873,2]
[401536728,1768295440271,-500.0,0.00015873,2]
[401536730,1768295440280,-971.0,0.0001601,2]
[401536732,1768295440289,-761.0,0.0001601,2]
[401536735,1768295440298,-500.0,0.0001601,2]
[401536738,1768295440307,-629.0,0.00016118,2]
[401536740,1768295440316,-2147.0,0.00016118,2]
[401536742,1768295440325,-715.0,0.00016121,2]
[401536744,1768295440334,-197.738,0.00016121,2]
[401536746,1768295440343,-417.0,0.00016121,2]
[401536748,1768295440352,-417.0,0.00016121,2]
[401536750,1768295440362,-971.0,0.00016147,2]
[401536752,1768295440372,-761.0,0.00016147,2]
[401536754,1768295440381,-500.0,0.00016147,2]
[401536756,1768295440390,-553.64373807,0.00016238,2]
[401536758,1768295440400,-971.0,0.00016284,2]
[401536760,1768295440409,-761.0,0.00016284,2]
[401536762,1768295440419,-500.0,0.00016284,2]
[401536764,1768295440428,-234.0,0.00016332,2]
[401536766,1768295440437,-587.0,0.00016332,2]
[401536768,1768295440447,-971.0,0.00016421,2]
[401536771,1768295440457,-761.0,0.00016421,2]
[401536773,1768295440466,-500.0,0.00016421,2]
[401536775,1768295440476,-177.2,0.00016438,2]
[401536777,1768295440485,-200.0,0.00016438,2]
[401536779,1768295440495,-2351.0,0.00016451,2]
[401536781,1768295440504,-971.0,0.00016558,2]
[401536782,1768295440514,-761.0,0.00016558,2]
[401536784,1768295440523,-630.32995662,0.00016558,2]
[401536787,1768295440533,-971.0,0.00016695,2]
[401536789,1768295440543,-761.0,0.00016695,2]
[401536791,1768295440551,-453.18605833,0.00016786,2]
[401536793,1768295440561,-971.0,0.00016832,2]
[401536795,1768295440570,-761.0,0.00016832,2]
[401536797,1768295440579,-196.30336991,0.00016916,2]
[401536799,1768295440588,-177.2,0.00016944,2]
[401536800,1768295440597,-971.0,0.00016969,2]
[401536803,1768295440607,-761.0,0.00016969,2]
[401536805,1768295440615,-354.61766353,0.00016979,2]
[401536806,1768295440624,-223.46847972,0.00017099,2]
[401536808,1768295440633,-66694.4186292,0.000171,2]
[401536810,1768295440642,-971.0,0.00017106,2]
[401536812,1768295440652,-761.0,0.00017106,2]
[401536814,1768295440662,-778.0,0.000172,2]
[401536816,1768295440671,-971.0,0.00017243,2]
[401536818,1768295440680,-761.0,0.00017243,2]
[401536820,1768295440690,-989.54132005,0.0001738,2]
[401536822,1768295440699,-781.10317951,0.0001738,2]
[401536825,1768295440709,-177.2,0.00017449,2]
[401536826,1768295440719,-400.0,0.00017534,2]
[401536828,1768295440728,-160.0,0.00017682,3]
[401536830,1768295440738,-200.0,0.00017773,2]
[401536832,1768295440747,-53859.6231369,0.00017774,7]
[401536834,1768295440758,-800.0,0.00017856,7]
[401536836,1768295440771,-823.0,0.000179,2]
[401536839,1768295440781,-177.2,0.00017955,2]
[401536840,1768295440790,-168.0,0.000181,2]
[401536842,1768295440799,-160.0,0.00018188,4]
[401536844,1768295440808,-177.2,0.00018461,2]
[401536846,1768295440818,-219.08,0.000185,7]
[401536848,1768295440828,-600.0,0.0001863,2]
[401536850,1768295440838,-728.0,0.0001867,2]
[401536852,1768295440848,-160.0,0.00018694,5]
[401536855,1768295440858,-168.0,0.00018759,2]
[401536857,1768295440867,-303.10001603,0.000189,2]
[401536859,1768295440878,-303.10001603,0.000189,2]
[401536875,1768295441020,-800.0,0.00018952,7]
[401536878,1768295441031,-177.2,0.00018966,2]
[401536880,1768295441040,-401.55235429,0.00018979,2]
[401536882,1768295441049,-728.0,0.0001899,2]
[401536884,1768295441058,-728.0,0.0001899,2]
[401536886,1768295441067,-728.0,0.0001899,2]
[401536888,1768295441076,-728.0,0.0001899,2]
[401536890,1768295441086,-800.0,0.00019037,2]
[401536892,1768295441095,-800.0,0.0001905,2]
[401536894,1768295441103,-168.0,0.00019056,2]
[401536896,1768295441112,-728.0,0.00019068,2]
[401536898,1768295441121,-303.10001603,0.00019089,2]
[401536900,1768295441131,-303.10001603,0.00019089,2]
[401536901,1768295441140,-800.0,0.00019104,2]
[401536903,1768295441149,-800.0,0.00019109,2]
[401536905,1768295441158,-3021.08295992,0.0001911,2]
[401536907,1768295441167,-800.0,0.00019113,2]
[401536909,1768295441176,-629.0,0.00019118,2]
[401536911,1768295441186,-2147.0,0.00019118,2]
[401536913,1768295441196,-715.0,0.00019121,2]
[401536915,1768295441206,-178.0,0.00019121,2]
[401536917,1768295441215,-417.0,0.00019121,2]
[401536919,1768295441224,-417.0,0.00019121,2]
[401536921,1768295441234,-577.02788419,0.00019138,2]
[401536923,1768295441243,-800.0,0.00019146,2]
[401536925,1768295441253,-800.0,0.00019148,2]
[401536927,1768295441262,-800.0,0.00019149,2]
[401536929,1768295441272,-4736.82165609,0.00019178,2]
[401536931,1768295441280,-150.07839335,0.00019178,2]
[401536933,1768295441290,-168.0,0.00019185,2]
[401536935,1768295441299,-2968.98524404,0.00019199,2]
[401536936,1768295441308,-200.0,0.00019199,2]
[401536938,1768295441317,-161.93,0.000192,2]
[401536940,1768295441326,-167.81,0.000192,2]
[401536942,1768295441335,-22846.25,0.000192,2]
[401536944,1768295441343,-4190.8,0.000192,2]
[401536946,1768295441352,-157.94,0.000192,2]
[401536948,1768295441361,-160.0,0.000192,6]
[401536950,1768295441370,-800.0,0.00019201,2]
[401536952,1768295441379,-800.0,0.00019209,2]
[401536954,1768295441389,-800.0,0.00019212,2]
[401536956,1768295441398,-800.0,0.00019218,2]
[401536958,1768295441407,-800.0,0.00019232,2]
[401536960,1768295441415,-800.0,0.00019232,2]
[401536962,1768295441424,-800.0,0.00019253,2]
[401536964,1768295441433,-800.0,0.0001926,2]
[401536966,1768295441444,-800.0,0.00019274,2]
[401536968,1768295441453,-800.0,0.00019276,2]
[401536970,1768295441462,-303.10001603,0.00019278,2]
[401536972,1768295441471,-303.10001607,0.00019278,2]
[401536974,1768295441480,-800.0,0.0001928,2]
[401536976,1768295441490,-800.0,0.00019295,2]
[401536978,1768295441499,-800.0,0.00019295,2]
[401536980,1768295441508,-154.76043212,0.00019308,2]
[401536982,1768295441517,-728.0,0.0001931,2]
[401536984,1768295441527,-160.0,0.0001931,2]
[401536986,1768295441535,-728.0,0.0001931,2]
[401536988,1768295441544,-168.0,0.00019379,2]
[401536990,1768295441553,-303.10001603,0.00019467,2]
[401536992,1768295441562,-177.2,0.00019472,2]
[401536994,1768295441571,-1611061.22398899,0.000195,2]
[401536999,1768295441610,-1097.08178986,0.000195,2]
[401537070,1768295442265,-3e-08,0.000195,2]
[401537344,1768295445110,-2004.45,0.000195,2]
[401537430,1768295445872,-608.11491716,0.000195,2]
[401537442,1768295445981,-917.68893987,0.000195,2]
[401545286,1768295612925,500.0,0.00030136,120]
[401545287,1768295613079,500.0,0.00030136,120]
[401545288,1768295613418,500.0,0.00030136,120]
[401545289,1768295613627,500.0,0.00030136,120]
[401545290,1768295613966,500.0,0.00030136,120]
[401545291,1768295614160,500.0,0.00030136,120]
[401545292,1768295614456,500.0,0.00030136,120]
[401545293,1768295614715,293.75919817,0.00030136,120]
[401545304,1768295659429,197.30010284,0.00030136,120]
[401545305,1768295679144,428.05618276,0.00030136,120]
[401545312,1768296498539,173.99065935,0.0002621,120]
[401545313,1768296502528,155.0,9.5e-05,2]
[401545407,1768296638105,-1923.1634299,0.00015921,2]
[401545408,1768296638118,-234.25625656,0.00015979,2]
[401545409,1768296638128,-249.38565244,0.00016082,2]
[401545410,1768296638140,-792.28101423,0.00016082,2]
[401545411,1768296638150,-200.0,0.00016438,2]
[401545412,1768296638160,-1840.59515807,0.00016808,2]
[401545413,1768296638176,-1391.09732182,0.00016808,2]
[401545414,1768296638187,-1023.09088598,0.00016808,2]
[401545415,1768296638200,-343.90911402,0.00016808,2]
[401545416,1768296638210,-616.97391185,0.00016808,2]
[401545445,1768296640401,-12.02608815,0.00016808,2]
[401545447,1768296640411,-327.81205752,0.00016808,2]
[401545889,1768296644814,-1819.18794248,0.00016808,2]
[401545891,1768296644824,-715.0,0.00016808,2]
[401545893,1768296644834,-197.738,0.00016808,2]
[401545895,1768296644843,-417.0,0.00016808,2]
[401545897,1768296644852,-417.0,0.00016808,2]
[401545899,1768296644861,-57856.9277196,0.00016867,2]
[401545901,1768296644870,-300.0,0.00016986,3]
[401545903,1768296644879,-1183.42470219,0.00017,2]
[401545905,1768296644888,-300.0,0.0001726,3]
[401545907,1768296644897,-300.0,0.00017534,3]
[401545909,1768296644906,-400.0,0.00017534,2]
[401545911,1768296644914,-300.0,0.00017808,3]
[401545913,1768296644924,-700.0,0.00017856,7]
[401545915,1768296644933,-700.0,0.00017856,7]
[401545917,1768296644942,-778.0,0.000179,2]
[401545919,1768296644951,-276.42238274,0.00017979,2]
[401545921,1768296644960,-181.08010149,0.00017989,2]
[401545923,1768296644969,-187.78006525,0.00017989,2]
[401545925,1768296644979,-194.72792766,0.00017989,2]
[401545927,1768296644988,-201.93286099,0.00017989,2]
[401545929,1768296644998,-209.40437684,0.00017989,2]
[401545932,1768296645019,-217.15233878,0.00017989,2]
[401545934,1768296645030,-225.18697532,0.00017989,2]
[401545936,1768296645041,-233.51889341,0.00017989,2]
[401545938,1768296645050,-242.15909246,0.00017989,2]
[401545940,1768296645060,-251.11897888,0.00017989,2]
[401545942,1768296645070,-260.4103811,0.00017989,2]
[401545944,1768296645079,-270.0455652,0.00017989,2]
[401545946,1768296645089,-280.03725112,0.00017989,2]
[401545948,1768296645099,-290.39862941,0.00017989,2]
[401545950,1768296645110,-301.1433787,0.00017989,2]
[401545952,1768296645122,-573.47,0.0001799,3]
[401545954,1768296645133,-500.0,0.00017999,2]
[401545956,1768296645143,-500.0,0.00017999,2]
[401545958,1768296645153,-500.0,0.00017999,2]
[401545960,1768296645164,-583.38890619,0.00017999,2]
[401545962,1768296645173,-500.0,0.00017999,2]
[401545964,1768296645183,-500.0,0.00017999,2]
[401545966,1768296645195,-500.0,0.00017999,2]
[401545968,1768296645204,-500.0,0.00017999,2]
[401545970,1768296645214,-500.0,0.00017999,2]
[401545972,1768296645225,-500.0,0.00017999,2]
[401545974,1768296645235,-500.0,0.00017999,2]
[401545976,1768296645244,-500.0,0.00017999,2]
[401545978,1768296645257,-368.24026857,0.00017999,2]
[401545980,1768296645267,-280.70431398,0.00017999,2]
[401545982,1768296645279,-500.0,0.00017999,2]
[401545984,1768296645288,-500.0,0.00017999,2]
[401545986,1768296645297,-500.0,0.00017999,2]
[401545988,1768296645306,-500.0,0.00017999,2]
[401545990,1768296645316,-500.0,0.00017999,2]
[401545992,1768296645325,-500.0,0.00017999,2]
[401545994,1768296645334,-500.0,0.00017999,2]
[401545996,1768296645344,-500.0,0.00017999,2]
[401545998,1768296645354,-500.0,0.00017999,2]
[401546000,1768296645363,-500.0,0.00017999,2]
[401546003,1768296645374,-500.0,0.00017999,2]
[401546004,1768296645383,-500.0,0.00017999,2]
[401546006,1768296645393,-264.93541659,0.00017999,2]
[401546008,1768296645402,-500.0,0.00017999,2]
[401546010,1768296645411,-500.0,0.00017999,2]
[401546013,1768296645421,-280.70431398,0.00017999,2]
[401546015,1768296645431,-4134.0,0.00018,2]
[401546017,1768296645441,-15515.76888969,0.00018,2]
[401546019,1768296645454,-626.16112549,0.00018,2]
[401546119,1768296646089,-9135.7447465,0.00018,2]
[401550292,1768297832240,-1000.0,0.00015742,2]
[401550294,1768297832249,-229.40913893,0.00015762,2]
[401550296,1768297832258,-207.61409938,0.00015821,2]
[401550299,1768297832268,-200.0,0.00016438,2]
[401550300,1768297832277,-1041.66666667,0.00016621,2]
[401550302,1768297832287,-4204.48252016,0.00016656,2]
[401550304,1768297832296,-1200.0,0.00016665,2]
[401550306,1768297832305,-1963.10259347,0.00016665,2]
[401550308,1768297832315,-22514.83520284,0.00016666,2]
[401550311,1768297832326,-3668.66715804,0.00016666,2]
[401550313,1768297832338,-332.93679327,0.00016666,2]
[401550356,1768297838359,-5763.37991661,0.00016666,2]
[401550357,1768297838370,-6820.0499602,0.00016666,2]
[401550358,1768297838381,-3242.15643978,0.00016666,2]
[401550385,1768297845251,-272.28325804,0.00016666,2]
[401550390,1768297846409,-28300.27565058,0.00016666,2]
[401550392,1768297858679,-821.37,0.00016656,3]
[401550393,1768297858838,-5920.95,0.00016666,2]
[401550394,1768297859090,-10000.01,0.00016666,2]
[401550395,1768297859352,-10000.01,0.00016666,2]
[401550396,1768297859513,-10000.01,0.00016666,2]
[401550397,1768297859752,-10000.01,0.00016666,2]
[401550398,1768297859969,-10000.01,0.00016666,2]
[401550399,1768297860153,-10000.01,0.00016666,2]
[401550400,1768297860363,-10000.01,0.00016666,2]
[401550401,1768297860532,-10000.01,0.00016666,2]
[401550402,1768297860717,-10000.01,0.00016666,2]
[401550403,1768297873108,-10000.01,0.00016566,2]
[401550404,1768297873373,-10000.01,0.00016566,2]
[401550405,1768297873650,-10000.01,0.00016566,2]
[401550406,1768297873834,-3406.82714739,0.00016566,2]
[401550407,1768297873858,-3186.35570522,0.00016566,2]
[401550408,1768297874053,-300.0,0.00016665,2]
[401550409,1768297874091,-9400.01,0.00016666,2]
[401550410,1768297874268,-10000.01,0.00016666,2]
[401550411,1768297978494,500.0,0.00030136,120]
[401550412,1768297978869,500.0,0.00030136,120]
[401550413,1768297979129,500.0,0.00030136,120]
[401550414,1768297979560,529.59,0.00030136,120]
[401550415,1768297990798,500.0,0.00030136,120]
[401550416,1768298001534,500.0,0.00030136,120]
[401550417,1768298001781,500.0,0.00030136,120]
[401550418,1768298002051,500.0,0.00030136,120]
[401550419,1768298002297,500.0,0.00030136,120]
[401550420,1768298002606,500.0,0.00030136,120]
[401550421,1768298002851,500.0,0.00030136,120]
[401550422,1768298003097,500.0,0.00030136,120]
[401550423,1768298003373,500.0,0.00030136,120]
[401550424,1768298003636,500.0,0.00030136,120]
[401550425,1768298003893,500.0,0.00030136,120]
[401550426,1768298004153,368.94557912,0.00030136,120]
[401550427,1768298006724,500.0,0.00030136,120]
[401550428,1768298014111,504.49,0.00030136,120]
[401550429,1768298023294,500.0,0.00030136,120]
[401550430,1768298041131,645.98,0.00030136,120]
[401550431,1768298046012,500.0,0.00030136,120]
[401550432,1768298066936,500.0,0.00030136,120]
[401550433,1768298067104,154.07,0.00030136,120]
[401550434,1768298076498,500.0,0.00030136,120]
[401550435,1768298076832,500.0,0.00030136,120]
[401550436,1768298077140,500.0,0.00030136,120]
[401550437,1768298077311,500.0,0.00030136,120]
[401550438,1768298077649,500.0,0.00030136,120]
[401550439,1768298077925,298.29,0.00030136,120]
[401550440,1768298082036,500.0,0.00030136,120]
[401550441,1768298083899,500.0,0.00030136,120]
[401550442,1768298084140,500.0,0.00030136,120]
[401550443,1768298084688,225.96733564,0.00030136,120]
[401550444,1768298099909,247.88032615,0.00030136,120]
[401550445,1768298455694,505.64678274,0.00030136,120]
[401550448,1768298724632,194.88697793,0.00030136,120]
[401550451,1768299032367,-200.0,0.00015496,2]
[401550452,1768299032378,-15954.2,0.00015497,2]
[401550453,1768299032388,-3678.92220514,0.00015504,2]
[401550454,1768299032398,-224.82095615,0.00015512,2]
[401550455,1768299032410,-174.168535,0.00015526,2]
[401550457,1768299032420,-25952.01632342,0.00015602,2]
[401550538,1768299038543,-1161.54601327,0.00015602,2]
[401550539,1768299038555,-968.75395028,0.00015602,2]
[401550540,1768299038566,-980.33551009,0.00015602,2]
[401550577,1768299040687,-358.36397932,0.00015602,2]
[401550578,1768299040740,-8487.19169672,0.00015602,2]
[401550616,1768299077401,-322.6674731,0.00015602,2]
[401550617,1768299077448,-9354.6750538,0.00015602,2]
[401550618,1768299077874,-1748.2784778,0.00015604,2]
[401550619,1768299077902,-775.0,0.00016,2]
[401550620,1768299077935,-1041.66666667,0.00016086,2]
[401550621,1768299077963,-200.0,0.00016438,2]
[401550622,1768299077992,-236.86074016,0.00016554,2]
[401550623,1768299078020,-500.0,0.00016554,2]
[401550624,1768299078049,-337.90913252,0.00016554,2]
[401550625,1768299078180,-320.5799657,0.00016554,2]
[401550626,1768299079810,500.0,0.00030136,120]
[401550627,1768299091778,-179.4200343,0.00016554,2]
[401550628,1768299091809,-500.0,0.00016554,2]
[401550629,1768299091840,-500.0,0.00016554,2]
[401550630,1768299091868,-306.04060979,0.00016554,2]
[401550631,1768299091895,-477.9,0.00016555,3]
[401550632,1768299091922,-238.95,0.00016555,3]
[401550633,1768299091955,-716.85,0.00016555,3]
[401550634,1768299092073,-4161.68871182,0.00016555,2]
[401550635,1768299092120,-10000.01,0.00016555,2]
[401550636,1768299100427,900.0,0.00030136,120]
[401550637,1768299130867,500.0,0.00030136,120]
[401550638,1768299131095,500.0,0.00030136,120]
[401550639,1768299131343,588.96766038,0.00030136,120]
[401550640,1768299618960,215.67,0.00030137,120]
[401550676,1768300205703,153.47,5e-05,2]
[401550677,1768300206388,153.47,5.1e-05,2]
[401550678,1768300207038,-580.0,0.00011388,2]
[401550679,1768300207064,-89.9149176,0.00011388,2]
[401550680,1768300207095,153.47,5.2e-05,2]
[401550681,1768300207772,153.47,5.4e-05,2]
[401550682,1768300208517,153.47,5.5e-05,2]
[401550683,1768300209325,153.47,5.6e-05,2]
[401550684,1768300210036,153.47,5.7e-05,2]
[401550685,1768300210723,153.47,5.9e-05,2]
[401550686,1768300211548,153.47,6e-05,2]
[401550687,1768300212104,153.47,6.1e-05,2]
[401550688,1768300212956,153.47,6.2e-05,2]
[401550689,1768300213612,153.47,6.3e-05,2]
[401550690,1768300214219,153.47,6.5e-05,2]
[401550691,1768300214989,153.47,6.6e-05,2]
[401550692,1768300215693,153.47,6.7e-05,2]
[401550693,1768300216474,153.47,6.8e-05,2]
[401550694,1768300217102,153.47,7e-05,2]
[401550695,1768300217680,153.47,7.1e-05,2]
[401550696,1768300218390,153.47,7.2e-05,2]
[401550697,1768300219036,153.47,7.3e-05,2]
[401550698,1768300219668,153.47,7.4e-05,2]
[401550699,1768300220416,153.47,7.6e-05,2]
[401550700,1768300221147,153.47,7.7e-05,2]
[401550701,1768300221861,153.47,7.8e-05,2]
[401550702,1768300222552,153.47,7.9e-05,2]
[401550942,1768300240977,-4.55754026,0.00011388,2]
[401550944,1768300240989,-83.05033314,0.00011388,2]
[401550946,1768300240998,-3499.70392112,0.00013,7]
[401550948,1768300241008,-220.32453703,0.00013186,2]
[401550950,1768300241017,-663.3575675,0.00014516,2]
[401550952,1768300241027,-177.522791,0.00014984,2]
[401550954,1768300241037,-259.9829537,0.00015186,2]
[401550956,1768300241046,-300.0,0.00015511,2]
[401550958,1768300241055,-939.0,0.00015511,2]
[401550960,1768300241064,-7972.6396445,0.00015512,2]
[401550962,1768300241073,-663.669085,0.00015562,2]
[401550964,1768300241082,-1041.66666667,0.00016262,2]
[401550967,1768300241091,-11189.08250034,0.00016276,2]
[401550970,1768300241114,-2101.86243448,0.00016276,2]
[401557022,1768300305740,500.0,0.00030136,120]
[401557052,1768300306079,585.26,0.00030136,120]
[401557058,1768300493196,500.0,0.00030136,120]
[401557059,1768300946412,632.14335872,0.00030136,120]
[401557060,1768300992142,500.0,0.00030136,120]
[401557061,1768300992401,409.82389827,0.00030136,120]
[401557062,1768301313380,500.0,0.00030136,120]
[401557063,1768301313634,500.0,0.00030136,120]
[401557064,1768301313878,500.0,0.00030136,120]
[401557065,1768301314113,500.0,0.00030136,120]
[401557066,1768301314355,500.0,0.00030136,120]
[401557067,1768301314594,500.0,0.00030136,120]
[401557068,1768301317977,500.0,0.00030136,120]
[401557069,1768301318274,500.0,0.00030136,120]
[401557070,1768301318516,500.0,0.00030136,120]
[401557071,1768301318815,500.0,0.00030136,120]
[401557072,1768301319040,500.0,0.00030136,120]
[401557073,1768301319334,500.0,0.00030136,120]
[401557074,1768301319582,500.0,0.00030136,120]
[401557075,1768301319842,500.0,0.00030136,120]
[401557076,1768301320080,500.0,0.00030136,120]
[401557077,1768301320328,500.0,0.00030136,120]
[401557078,1768301320637,500.0,0.00030136,120]
[401557079,1768301320845,500.0,0.00030136,120]
[401557080,1768301321097,500.0,0.00030136,120]
[401557081,1768301321338,519.33049926,0.00030136,120]
[401557082,1768301335698,155.0,9.5e-05,2]
[401557083,1768301431697,-619.0,0.00013927,2]
[401557085,1768301431707,-780.00766994,0.00013927,2]
[401557087,1768301431716,-3116.91064906,0.00013927,2]
[401557089,1768301431725,-219.2969698,0.0001468,2]
[401557091,1768301431734,-184.8533037,0.00015456,2]
[401557093,1768301431743,-1041.66666667,0.0001611,2]
[401557095,1768301431752,-300.0,0.0001626,2]
[401557097,1768301431762,-3219.05692955,0.00016262,2]
[401557099,1768301431772,-238.95,0.00016353,3]
[401557101,1768301431781,-716.85,0.00016353,3]
[401557103,1768301431791,-17412.77825333,0.00016362,2]
[401557105,1768301431801,-500.0,0.00016362,2]
[401557107,1768301431809,-413.12711682,0.00016362,2]
[401557109,1768301431818,-500.0,0.00016362,2]
[401557111,1768301431827,-500.0,0.00016362,2]
[401557112,1768301431837,-500.0,0.00016362,2]
[401557113,1768301431846,-500.0,0.00016362,2]
[401557114,1768301431855,-500.0,0.00016362,2]
[401557115,1768301431865,-500.0,0.00016362,2]
[401557116,1768301431874,-500.0,0.00016362,2]
[401557117,1768301431887,-500.0,0.00016362,2]
[401557118,1768301431896,-247.55782027,0.00016362,2]
[401557119,1768301431905,-500.0,0.00016362,2]
[401557120,1768301431914,-500.0,0.00016362,2]
[401557121,1768301431923,-500.0,0.00016362,2]
[401557122,1768301431933,-500.0,0.00016362,2]